bitfinex/quotes_SOLUSD_20240626
["timestamp","ask_amount","ask_price","bid_price","bid_amount"]
[1719426308223,0.8506923,135.88,135.86,7.3601]
[1719426308423,0.8506923,135.88,135.87,7.3599]
[1719426308603,0.8506923,135.88,135.87,7.6999]
[1719426308805,0.8506923,135.88,135.87,9.17134064]
[1719426309020,0.8506923,135.88,135.87,36.59134064]
[1719426309625,0.8506923,135.88,135.87,43.97434064]
[1719426309811,0.8506923,135.88,135.87,16.55434064]
[1719426310313,0.8506923,135.88,135.87,7.5299]
[1719426310510,0.8506923,135.88,135.87,7.3599]
[1719426310756,0.8506923,135.88,135.87,7.5299]
[1719426311028,0.8506923,135.88,135.87,7.6999]
[1719426311521,0.8506923,135.88,135.87,15.0829]
[1719426313418,0.8506923,135.88,135.87,7.3599]
[1719426313627,0.8506923,135.88,135.87,14.7429]
[1719426314521,0.8506923,135.88,135.87,7.3599]
[1719426314710,0.8506923,135.88,135.86,7.3603]
[1719426314910,27.42,135.87,135.86,7.3603]
[1719426315116,27.42,135.87,135.8,6.4869]
[1719426315310,27.42,135.84,135.83,7.3621]
[1719426315525,27.42,135.84,135.8,7.3636]
[1719426315526,34.7817,135.84,135.8,7.3636]
[1719426315716,27.42,135.81,135.8,7.3635]
[1719426316028,16.5503,135.85,135.81,7.3632]
[1719426316227,16.5503,135.85,135.8,7.3635]
[1719426316228,27.42,135.82,135.8,7.3635]
[1719426316409,27.42,135.81,135.8,7.3635]
[1719426316611,54.77,135.83,135.78,7.3648]
[1719426316941,62.1323,135.83,135.78,7.3647]
[1719426317118,62.1323,135.83,135.79,7.3642]
[1719426317318,54.77,135.83,135.79,7.3642]
[1719426317643,54.77,135.83,135.8,7.3636]
[1719426317808,54.77,135.83,135.72,6.4984]
[1719426318012,54.77,135.83,135.81,7.3631]
[1719426318432,22.8393,135.85,135.73,200.0]
[1719426318731,22.8393,135.85,135.81,7.363]
[1719426318927,7.3621,135.83,135.72,13.8814]
[1719426319128,62.1317,135.84,135.79,7.3642]
[1719426319331,7.3622,135.83,135.78,7.3648]
[1719426319524,54.77,135.84,135.73,100.34]
[1719426319830,62.1316,135.84,135.79,7.3641]
[1719426320221,62.1316,135.84,135.73,0.34]
[1719426320222,62.1316,135.84,135.8,7.3636]
[1719426320541,54.77,135.84,135.81,7.3631]
[1719426321034,22.8393,135.85,135.82,7.3622]
[1719426321236,16.5503,135.85,135.83,7.3619]
[1719426322235,16.5503,135.85,135.73,107.723]
[1719426322414,23.9115,135.85,135.73,100.34]
[1719426322612,54.77,135.84,135.8,7.3636]
[1719426323430,62.1316,135.84,135.79,7.3641]
[1719426323644,7.3622,135.83,135.79,7.3641]
[1719426324237,62.1318,135.84,135.8,7.3636]
[1719426326035,62.1318,135.84,135.79,7.3641]
[1719426326820,7.3623,135.83,135.79,7.3641]
[1719426328743,62.1318,135.84,135.79,7.3641]
[1719426329248,7.3621,135.83,135.79,7.3641]
[1719426329425,54.77,135.84,135.72,6.4984]
[1719426329625,16.5503,135.85,135.73,200.34]
[1719426329831,20.0,135.84,135.73,200.34]
[1719426330041,20.0,135.84,135.82,7.3623]
[1719426330532,20.0,135.84,135.81,7.363]
[1719426331132,20.0,135.84,135.8,7.3635]
[1719426331366,27.3616,135.84,135.8,7.3635]
[1719426331647,23.9115,135.85,135.8,7.3635]
[1719426331831,23.9115,135.85,135.81,7.3629]
[1719426332546,7.3616,135.84,135.8,7.3636]
[1719426332752,23.9114,135.85,135.81,7.363]
[1719426333051,23.9114,135.85,135.77,15.4279]
[1719426333052,16.5503,135.85,135.77,15.4279]
[1719426333231,16.5503,135.85,135.78,0.34]
[1719426333754,23.9114,135.85,135.81,7.3629]
[1719426334258,16.5503,135.85,135.81,7.3629]
[1719426334553,16.5503,135.85,135.82,7.3624]
[1719426334925,16.5503,135.85,135.81,7.363]
[1719426335127,0.8506923,135.88,135.86,7.3604]
[1719426335321,0.8506923,135.88,135.82,0.17]
[1719426335558,0.8506923,135.88,135.86,7.36]
[1719426335731,0.8506923,135.88,135.83,0.17]
[1719426335732,0.8506923,135.88,135.87,7.3599]
[1719426340446,0.8506923,135.88,135.85,7.3605]
[1719426340758,0.8506923,135.88,135.8,15.296]
[1719426340931,8.2101923,135.88,135.83,7.3619]
[1719426341138,7.36,135.87,135.83,7.3619]
[1719426341635,14.4410923,135.88,135.83,7.3619]
[1719426341835,7.0814923,135.88,135.78,13.7318]
[1719426342042,7.0814923,135.88,135.86,7.3601]
[1719426343342,7.0814923,135.88,135.84,7.3613]
[1719426344250,7.0814923,135.88,135.85,7.3609]
[1719426345035,14.4409923,135.88,135.83,7.3619]
[1719426345457,7.36,135.87,135.83,7.3619]
[1719426346060,14.4410923,135.88,135.84,7.3614]
[1719426346257,14.4410923,135.88,135.83,7.3618]
[1719426346760,14.4410923,135.88,135.84,7.3615]
[1719426347459,14.4410923,135.88,135.82,7.3625]
[1719426347460,7.3606,135.86,135.82,7.3625]
[1719426347638,62.1306,135.86,135.82,7.3625]
[1719426347969,54.77,135.86,135.82,7.3625]
[1719426348256,54.77,135.86,135.8,7.3635]
[1719426348257,16.3618,135.85,135.8,7.3635]
[1719426348463,16.3618,135.85,135.79,7.3641]
[1719426349132,62.1322,135.83,135.79,7.3641]
[1719426349337,54.77,135.83,135.79,7.3641]
[1719426350060,62.1322,135.83,135.78,7.3646]
[1719426350448,54.77,135.83,135.79,7.3641]
[1719426350658,54.77,135.83,135.8,7.3636]
[1719426351738,62.1322,135.83,135.74,6.1154]
[1719426351940,62.1322,135.83,135.75,0.34]
[1719426353251,62.1322,135.83,135.79,7.3643]
[1719426353451,54.77,135.83,135.79,7.3643]
[1719426354362,54.77,135.83,135.8,7.3636]
[1719426354547,54.77,135.83,135.81,7.3631]
[1719426354963,54.77,135.83,135.75,0.34]
[1719426355260,54.77,135.83,135.8,7.3635]
[1719426355449,54.77,135.83,135.79,7.3641]
[1719426356664,62.1321,135.83,135.79,7.3641]
[1719426359857,54.77,135.83,135.8,7.3637]
[1719426360055,54.77,135.83,135.75,0.34]
[1719426360257,54.77,135.83,135.81,7.3628]
[1719426361163,54.77,135.83,135.82,7.3626]
[1719426361357,16.3618,135.85,135.75,0.34]
[1719426361564,16.3618,135.85,135.83,7.3617]
[1719426362149,16.3618,135.85,135.82,7.3624]
[1719426365070,16.3618,135.85,135.83,7.3619]
[1719426365775,16.3618,135.85,135.75,0.34]
[1719426365960,54.77,135.86,135.78,15.269]
[1719426366158,54.77,135.86,135.84,7.3611]
[1719426366774,27.36,135.85,135.84,7.3611]
[1719426367165,27.36,135.85,135.81,7.3626]
[1719426367371,27.36,135.83,135.79,0.34]
[1719426367574,27.36,135.83,135.82,7.3626]
[1719426371962,27.36,135.83,135.81,7.363]
[1719426372162,27.36,135.82,135.75,43.5444]
[1719426372476,7.69917982,135.87,135.78,27.36]
[1719426372779,15.9896923,135.88,135.86,7.3605]
[1719426372961,27.36,135.87,135.86,7.3605]
[1719426373160,27.36,135.87,135.85,7.3608]
[1719426374778,15.9896923,135.88,135.79,0.17]
[1719426375082,7.3609,135.86,135.82,7.3624]
[1719426375285,27.36,135.83,135.75,21.6103]
[1719426375460,27.36,135.8,135.75,21.6103]
[1719426375662,26.0259,135.86,135.8,7.3637]
[1719426375663,7.3616,135.84,135.8,7.3637]
[1719426375856,6.0259,135.86,135.8,7.3637]
[1719426375857,27.36,135.81,135.8,7.3637]
[1719426378165,27.36,135.81,135.79,7.364]
[1719426378379,27.36,135.8,135.79,7.364]
[1719426382196,6.0259,135.86,135.83,7.3621]
[1719426382369,27.36,135.84,135.83,7.3621]
[1719426382774,27.36,135.84,135.75,48.9703]
[1719426382975,27.36,135.84,135.82,7.3624]
[1719426383392,27.36,135.83,135.82,7.3624]
[1719426383780,27.36,135.83,135.81,7.363]
[1719426386503,27.36,135.83,135.8,7.3635]
[1719426386871,27.36,135.81,135.79,7.364]
[1719426387171,27.36,135.8,135.78,7.3647]
[1719426387478,27.36,135.79,135.78,7.3647]
[1719426388486,27.36,135.79,135.76,8.3153201]
[1719426388694,27.36,135.78,135.76,0.9498201]
[1719426389492,27.36,135.78,135.77,7.365]
[1719426389695,22.19,135.82,135.71,49.7136]
[1719426389882,27.70029156,135.85,135.68,15.8972]
[1719426389883,27.36,135.73,135.68,15.8972]
[1719426390082,27.36,135.71,135.68,15.8972]
[1719426390280,7.366,135.76,135.72,7.368]
[1719426390592,27.36,135.73,135.72,7.368]
[1719426391414,16.299,135.77,135.73,7.3672]
[1719426391581,16.299,135.77,135.68,15.8972]
[1719426391582,27.36,135.74,135.68,23.2802]
[1719426391782,27.36,135.73,135.72,7.3681]
[1719426392693,16.299,135.77,135.74,7.3668]
[1719426393594,54.81,135.78,135.77,7.3653]
[1719426394094,6.4144,135.8,135.77,7.3653]
[1719426394692,6.4144,135.8,135.76,7.3656]
[1719426394890,6.4144,135.8,135.75,7.3663]
[1719426395196,13.7783,135.8,135.76,7.3658]
[1719426397096,77.8942,135.81,135.77,7.3652]
[1719426397493,70.5308,135.81,135.78,7.3648]
[1719426397698,16.0206,135.84,135.81,7.363]
[1719426397904,16.0206,135.84,135.73,100.0]
[1719426398199,16.0206,135.84,135.82,7.3625]
[1719426398985,16.0206,135.84,135.81,7.363]
[1719426402797,16.0206,135.84,135.82,7.3626]
[1719426403696,16.0206,135.84,135.74,0.34]
[1719426403900,16.0206,135.84,135.79,7.364]
[1719426404200,23.3826,135.84,135.79,7.364]
[1719426404399,78.1926,135.84,135.79,7.364]
[1719426405096,7.3624,135.83,135.79,7.364]
[1719426406298,78.1924,135.84,135.8,7.3636]
[1719426406602,7.3625,135.83,135.74,0.34]
[1719426407190,7.3625,135.83,135.79,7.3639]
[1719426407601,78.1923,135.84,135.79,7.3639]
[1719426407900,78.1923,135.84,135.8,7.3637]
[1719426409998,7.3627,135.82,135.78,7.3643]
[1719426410301,13.8152,135.82,135.78,7.3643]
[1719426410509,54.81,135.81,135.78,7.3643]
[1719426411207,54.81,135.81,135.77,7.3653]
[1719426411905,54.81,135.81,135.78,7.3647]
[1719426412507,54.81,135.81,135.72,21.7888]
[1719426412705,6.4525,135.82,135.8,7.3632]
[1719426413083,6.4525,135.82,135.79,7.364]
[1719426413584,6.4525,135.82,135.79,7.3642]
[1719426416087,16.0206,135.84,135.8,7.3637]
[1719426416298,16.0206,135.84,135.73,0.34]
[1719426416299,16.0206,135.84,135.73,107.723]
[1719426416609,16.0206,135.84,135.82,7.3623]
[1719426417809,16.0206,135.84,135.81,7.363]
[1719426420198,16.0206,135.84,135.82,7.3626]
[1719426421099,0.8506923,135.88,135.85,7.361]
[1719426421304,0.8506923,135.88,135.84,7.3613]
[1719426421604,0.8506923,135.88,135.85,7.3609]
[1719426421810,0.8506923,135.88,135.87,7.3599]
[1719426422516,0.8506923,135.88,135.83,7.362]
[1719426422698,8.2101923,135.88,135.84,7.3614]
[1719426423030,62.17,135.87,135.79,0.17]
[1719426423318,62.17,135.87,135.79,0.34]
[1719426423917,54.81,135.87,135.83,7.3621]
[1719426424322,62.17,135.87,135.83,7.3621]
[1719426424506,54.81,135.87,135.83,7.3616]
[1719426424697,54.81,135.87,135.79,0.34]
[1719426425097,54.81,135.87,135.83,7.3619]
[1719426425708,8.2100923,135.88,135.79,0.34]
[1719426425709,0.8506923,135.88,135.79,0.34]
[1719426426022,0.8506923,135.88,135.84,7.3614]
[1719426426225,0.8506923,135.88,135.85,7.3609]
[1719426426729,0.8506923,135.88,135.79,0.34]
[1719426426730,0.8506923,135.88,135.86,7.3604]
[1719426427229,0.8506923,135.88,135.84,7.3614]
[1719426427732,0.8506923,135.88,135.85,7.3609]
[1719426428139,0.8506923,135.88,135.79,7.723]
[1719426428718,8.2102923,135.88,135.83,7.3617]
[1719426428949,7.3599,135.87,135.82,7.3626]
[1719426429128,7.3599,135.87,135.79,0.34]
[1719426429129,8.2100923,135.88,135.83,7.3619]
[1719426429827,0.8506923,135.88,135.84,7.3614]
[1719426430015,0.8506923,135.88,135.86,7.3603]
[1719426430406,0.8506923,135.88,135.87,7.3599]
[1719426431415,0.8506923,135.88,135.86,7.3602]
[1719426432135,0.8506923,135.88,135.87,7.3599]
[1719426435011,0.8506923,135.88,135.87,7.5299]
[1719426435329,0.8506923,135.88,135.87,7.3599]
[1719426436931,0.8506923,135.88,135.86,7.3603]
[1719426437107,0.8506923,135.88,135.82,16.5766]
[1719426438331,0.8506923,135.88,135.86,7.3603]
[1719426439409,0.8506923,135.88,135.87,7.3599]
[1719426443033,0.8506923,135.88,135.79,23.3089]
[1719426443224,24.7543923,135.88,135.79,23.3089]
[1719426443424,24.7543923,135.88,135.83,7.3619]
[1719426443612,7.3601,135.87,135.79,15.9259]
[1719426443817,7.3604,135.87,135.82,7.3625]
[1719426444820,7.3612,135.85,135.76,14.7907564]
[1719426445022,7.3616,135.84,135.8,7.3632]
[1719426445213,54.81,135.85,135.81,7.3629]
[1719426446036,54.81,135.85,135.82,7.3625]
[1719426447019,62.1711,135.85,135.81,7.363]
[1719426447548,7.3617,135.84,135.8,7.3635]
[1719426448443,62.1712,135.85,135.8,7.3635]
[1719426448631,6.2083,135.84,135.8,7.3635]
[1719426450648,6.2083,135.84,135.81,7.363]
[1719426452027,6.2083,135.84,135.82,7.3626]
[1719426452414,6.2083,135.84,135.81,7.363]
[1719426452831,6.2083,135.84,135.82,7.3626]
[1719426455439,6.2083,135.84,135.76,0.17]
[1719426455641,6.2083,135.84,135.76,0.34]
[1719426455840,13.5703,135.84,135.79,7.3638]
[1719426456343,13.5703,135.84,135.8,7.3637]
[1719426457038,22.4726,135.83,135.79,7.3642]
[1719426457220,15.1105,135.83,135.79,7.3642]
[1719426457416,15.1105,135.83,135.8,7.3636]
[1719426458637,27.38,135.81,135.8,7.3636]
[1719426463162,126.1794,135.87,135.76,7.723]
[1719426463443,20.0,135.86,135.82,7.3625]
[1719426463745,27.38,135.83,135.82,7.3625]
[1719426463968,27.38,135.83,135.76,0.34]
[1719426464246,7.361,135.85,135.81,7.3631]
[1719426464427,27.38,135.82,135.81,7.3631]
[1719426467126,27.38,135.82,135.8,7.3635]
[1719426467331,27.38,135.81,135.8,7.3635]
[1719426470338,7.3611,135.85,135.81,7.3631]
[1719426470555,27.38,135.82,135.81,7.3631]
[1719426471161,27.38,135.82,135.8,7.3635]
[1719426471362,27.38,135.81,135.8,7.3635]
[1719426476158,24.35887201,135.87,135.76,100.34]
[1719426476356,27.38,135.85,135.79,27.38]
[1719426476551,27.38,135.85,135.84,7.361]
[1719426482641,27.38,135.85,135.83,7.3619]
[1719426482845,27.38,135.84,135.83,7.3619]
[1719426483069,27.38,135.84,135.82,7.3625]
[1719426484061,27.38,135.84,135.83,7.3621]
[1719426484261,44.0394,135.87,135.78,27.38]
[1719426484262,16.6594,135.87,135.78,27.38]
[1719426484466,27.38,135.84,135.83,7.3621]
[1719426485043,16.6594,135.87,135.84,7.3612]
[1719426485243,27.38,135.85,135.84,7.3612]
[1719426493260,27.38,135.85,135.83,7.3619]
[1719426493465,27.38,135.84,135.83,7.3619]
[1719426495754,16.6594,135.87,135.85,7.3609]
[1719426495959,27.38,135.86,135.85,7.3609]
[1719426497076,16.6594,135.87,135.85,7.3609]
[1719426497255,27.38,135.86,135.85,7.3609]
[1719426497456,27.38,135.86,135.84,7.3614]
[1719426497766,27.38,135.85,135.75,16.6104]
[1719426497971,7.3606,135.86,135.81,7.3629]
[1719426498171,27.38,135.82,135.81,7.3629]
[1719426500568,126.1794,135.87,135.83,7.3616]
[1719426500878,27.38,135.84,135.83,7.3621]
[1719426501878,16.6594,135.87,135.85,7.3609]
[1719426502381,27.38,135.86,135.85,7.3609]
[1719426503084,27.38,135.86,135.84,7.3613]
[1719426504001,27.38,135.85,135.83,7.3619]
[1719426504179,16.6594,135.87,135.84,7.3616]
[1719426504361,27.38,135.85,135.84,7.3616]
[1719426504762,27.38,135.85,135.83,7.3619]
[1719426504962,27.38,135.84,135.83,7.3619]
[1719426506178,27.38,135.84,135.82,7.3626]
[1719426506365,7.3605,135.86,135.82,7.3626]
[1719426506572,27.38,135.83,135.82,7.3626]
[1719426509593,24.0194,135.87,135.83,7.3621]
[1719426509770,27.38,135.84,135.83,7.3621]
[1719426513265,133.5394,135.87,135.83,7.3621]
[1719426513466,27.38,135.84,135.83,7.3621]
[1719426514085,27.38,135.84,135.82,7.3624]
[1719426514385,27.38,135.83,135.82,7.3624]
[1719426521678,24.0195,135.87,135.82,7.3624]
[1719426521880,16.6594,135.87,135.79,8.85349486]
[1719426522082,16.6594,135.87,135.83,7.3621]
[1719426522280,27.38,135.84,135.83,7.3621]
[1719426522471,16.6594,135.87,135.83,7.3621]
[1719426522671,27.38,135.85,135.84,7.3615]
[1719426522882,27.38,135.85,135.83,7.3619]
[1719426524695,27.38,135.85,135.84,7.3616]
[1719426533816,27.38,135.85,135.8,22.929]
[1719426534102,27.38,135.84,135.83,7.3618]
[1719426538103,0.8506923,135.88,135.84,7.3611]
[1719426538397,0.8506923,135.88,135.8,15.376]
[1719426538599,0.8506923,135.88,135.87,7.3599]
[1719426540579,28.2306923,135.88,135.87,7.3599]
[1719426544535,0.8506923,135.88,135.87,7.3599]
[1719426549818,0.8506923,135.88,135.87,7.5299]
[1719426550229,0.8506923,135.88,135.87,14.9129]
[1719426551894,0.8506923,135.88,135.87,14.7429]
[1719426556323,0.8506923,135.88,135.87,7.3599]
[1719426556562,0.8506923,135.88,135.87,7.3399]
[1719426556932,28.2306923,135.88,135.87,7.3399]
[1719426558227,0.8506923,135.88,135.87,7.3399]
[1719426558427,0.8506923,135.88,135.87,14.7119]
[1719426559131,0.8506923,135.88,135.87,7.3399]
[1719426564339,0.8506923,135.88,135.87,7.3399]
[1719426565033,28.2306923,135.88,135.8,21.16108199]
[1719426565213,27.38,135.86,135.85,7.3609]
[1719426567431,27.38,135.86,135.81,7.3628]
[1719426567742,27.38,135.84,135.83,7.3619]
[1719426568121,27.38,135.85,135.84,7.3616]
[1719426568719,0.8506923,135.88,135.84,7.3616]
[1719426569019,27.38,135.85,135.84,7.3616]
[1719426570229,0.8506923,135.88,135.81,7.372]
[1719426570420,27.38,135.87,135.86,7.3605]
[1719426571945,27.38,135.87,135.85,7.3608]
[1719426572449,27.38,135.87,135.86,7.3605]
[1719426573646,27.38,135.87,135.85,7.3608]
[1719426573825,27.38,135.86,135.85,7.3608]
[1719426576153,27.38,135.86,135.84,7.3614]
[1719426576360,27.38,135.85,135.84,7.3614]
[1719426579627,0.8506923,135.88,135.86,7.3604]
[1719426580039,27.38,135.87,135.86,7.3604]
[1719426581054,0.8506923,135.88,135.86,7.3604]
[1719426581240,0.8506923,135.88,135.87,7.3599]
[1719426581637,28.2306923,135.88,135.87,7.3599]
[1719426584438,28.2306923,135.88,135.86,7.3603]
[1719426584630,27.38,135.87,135.81,6.5711]
[1719426584937,0.8506923,135.88,135.85,7.3608]
[1719426584938,27.38,135.86,135.85,7.3608]
[1719426587055,27.38,135.86,135.79,16.0822]
[1719426587361,27.38,135.85,135.84,7.3615]
[1719426587548,27.38,135.85,135.83,7.362]
[1719426587853,27.38,135.84,135.83,7.362]
[1719426589734,27.38,135.84,135.8,7.712]
[1719426589735,0.8506923,135.88,135.86,7.3605]
[1719426589928,27.38,135.87,135.86,7.3605]
[1719426590144,0.8506923,135.88,135.87,7.3599]
[1719426590327,28.2306923,135.88,135.87,7.3599]
[1719426590551,28.2306923,135.88,135.86,7.3603]
[1719426590750,27.38,135.87,135.86,7.3603]
[1719426591235,0.8506923,135.88,135.87,7.3599]
[1719426591439,28.2306923,135.88,135.86,7.3603]
[1719426591642,27.38,135.87,135.86,7.3603]
[1719426594651,0.8506923,135.88,135.87,7.3599]
[1719426594845,28.2306923,135.88,135.87,7.3599]
[1719426595245,28.2306923,135.88,135.86,7.3602]
[1719426595450,27.38,135.87,135.86,7.3602]
[1719426600862,28.2306923,135.88,135.87,7.3599]
[1719426601040,0.8506923,135.88,135.87,7.3599]
[1719426601673,28.2306923,135.88,135.87,7.3599]
[1719426605652,0.8506923,135.88,135.87,7.3599]
[1719426607454,0.8506923,135.88,135.87,7.5299]
[1719426608467,0.8506923,135.88,135.87,14.9019]
[1719426609462,0.8506923,135.88,135.87,15.0719]
[1719426609651,28.2306923,135.88,135.87,7.3599]
[1719426609855,28.2306923,135.88,135.86,7.3603]
[1719426610263,28.2306923,135.88,135.87,7.3599]
[1719426612940,28.2306923,135.88,135.84,7.372]
[1719426612941,28.2306923,135.88,135.83,7.372]
[1719426613159,28.2306923,135.88,135.84,0.34]
[1719426613976,28.2306923,135.88,135.87,7.3599]
[1719426614168,0.8506923,135.88,135.87,7.3599]
[1719426615267,0.8506923,135.88,135.81,15.5857]
[1719426615567,27.38,135.86,135.85,7.3607]
[1719426621866,28.2306923,135.88,135.87,7.3599]
[1719426622570,28.2306923,135.88,135.86,7.3603]
[1719426622767,27.38,135.87,135.86,7.3603]
[1719426623075,27.38,135.87,135.84,7.3612]
[1719426623277,27.38,135.85,135.84,7.3612]
[1719426624956,27.38,135.86,135.85,7.361]
[1719426625576,27.38,135.87,135.86,7.3605]
[1719426628270,27.38,135.87,135.82,7.372]
[1719426628574,0.8506923,135.88,135.85,7.3608]
[1719426628575,27.38,135.86,135.85,7.3608]
[1719426630071,27.38,135.86,135.84,7.3614]
[1719426630276,27.38,135.85,135.84,7.3614]
[1719426632379,27.38,135.85,135.83,7.3619]
[1719426632678,27.38,135.84,135.83,7.3619]
[1719426639783,27.38,135.85,135.84,7.3615]
[1719426641384,27.38,135.85,135.83,7.3618]
[1719426643788,8.2101923,135.88,135.84,7.3616]
[1719426644169,27.38,135.85,135.84,7.3616]
[1719426644369,27.38,135.86,135.84,7.3616]
[1719426645185,27.38,135.86,135.83,7.3619]
[1719426645379,27.38,135.85,135.83,7.3619]
[1719426645988,0.8506923,135.88,135.84,7.3616]
[1719426646201,27.38,135.85,135.84,7.3616]
[1719426646993,27.38,135.85,135.83,7.362]
[1719426650489,27.38,135.85,135.84,7.3616]
[1719426651296,27.38,135.85,135.83,7.3619]
[1719426651470,27.38,135.85,135.79,34.752]
[1719426651795,27.38,135.84,135.83,7.362]
[1719426655405,0.8506923,135.88,135.8,0.34]
[1719426655582,0.8506923,135.88,135.86,7.3602]
[1719426655891,0.8506923,135.88,135.87,7.3599]
[1719426656089,28.2306923,135.88,135.87,7.3599]
[1719426656472,0.8506923,135.88,135.87,7.3599]
[1719426656672,0.8506923,135.88,135.87,7.6999]
[1719426657083,0.8506923,135.88,135.87,29.3172]
[1719426657275,0.8506923,135.88,135.87,56.6972]
[1719426657481,0.8506923,135.88,135.87,64.0692]
[1719426657693,9.23e-05,135.88,135.87,64.0692]
[1719426658079,256.0,135.99,135.87,184.0893]
[1719426658275,16.6462923,136.01,135.94,27.38]
[1719426658507,27.38,136.0,135.95,7.542]
[1719426658709,27.38,135.99,135.95,7.542]
[1719426658996,16.6462923,136.01,135.95,0.17]
[1719426659203,0.8506923,136.01,135.95,0.34]
[1719426659501,28.2306923,136.01,135.95,0.34]
[1719426659798,28.2306923,136.01,135.96,7.372]
[1719426660092,0.8506923,136.01,135.96,34.752]
[1719426660297,28.2306923,136.01,135.97,0.34]
[1719426660781,0.8506923,136.01,135.97,0.34]
[1719426660987,0.8506923,136.01,135.98,7.372]
[1719426661188,0.8506923,136.01,135.99,0.34]
[1719426662192,0.8506923,136.01,135.99,7.712]
[1719426662394,0.8506923,136.01,135.99,27.72]
[1719426662979,0.8506923,136.01,135.99,0.34]
[1719426663408,0.8506923,136.01,135.99,7.712]
[1719426665002,0.8506923,136.01,135.94,49.3404]
[1719426665003,27.38,136.0,135.94,49.3404]
[1719426665410,28.2306923,136.01,135.95,27.38]
[1719426665983,28.2306923,136.01,135.97,7.372]
[1719426667789,27.38,136.0,135.96,7.712]
[1719426668103,27.38,136.0,135.97,0.17]
[1719426668413,28.2306923,136.01,135.97,0.17]
[1719426668610,28.2306923,136.01,135.97,0.34]
[1719426668797,28.2306923,136.01,135.97,7.712]
[1719426669412,0.8506923,136.01,135.97,0.34]
[1719426669708,28.2306923,136.01,135.96,0.34]
[1719426670402,0.8506923,136.01,135.96,0.34]
[1719426670587,28.2306923,136.01,135.96,0.34]
[1719426671111,28.2306923,136.01,135.97,7.372]
[1719426671407,28.2306923,136.01,135.98,0.34]
[1719426672317,28.2306923,136.01,135.98,7.712]
[1719426672318,0.8506923,136.01,135.98,7.712]
[1719426673511,28.2306923,136.01,135.98,0.34]
[1719426673903,0.8506923,136.01,135.94,21.9604]
[1719426674103,27.38,135.99,135.95,0.17]
[1719426674418,27.38,136.0,135.95,0.17]
[1719426674585,27.38,136.0,135.95,27.55]
[1719426675215,27.38,136.0,135.96,0.17]
[1719426675702,0.8506923,136.01,135.96,0.17]
[1719426675905,28.2306923,136.01,135.96,0.17]
[1719426676283,0.8506923,136.01,135.97,27.38]
[1719426676490,0.8506923,136.01,135.98,0.34]
[1719426676706,0.8506923,136.01,135.98,0.17]
[1719426677204,28.2306923,136.01,135.96,0.17]
[1719426677410,28.2306923,136.01,135.95,35.092]
[1719426678609,27.38,135.99,135.95,7.542]
[1719426679292,0.8506923,136.01,135.95,7.542]
[1719426679611,27.38,135.99,135.95,7.542]
[1719426680395,27.38,136.0,135.95,7.542]
[1719426681196,27.38,136.0,135.96,7.542]
[1719426681403,27.38,136.0,135.97,0.17]
[1719426682898,0.8506923,136.01,135.97,0.17]
[1719426683100,27.38,136.0,135.97,0.17]
[1719426683396,0.8506923,136.01,135.97,0.17]
[1719426683590,27.38,136.0,135.97,0.17]